Workbook

Sheet Step 1 - Project Info
A1: Multifamily Initiative Project Fill Out From
A2: Rev. 2016.03.24 | B2: PROJECT INFO
B3: Property Name | C3: Winem Apartments
B4: Property Street Number | C4: 31
B5: Property Street | C5: Field St.
B6: Property Street Address Line 2
B7: Property City | C7: Ashford
B8: Property Zip Code | C8: 06010
B9: Customer Electric (Master) Account Number(s)
B10: Customer Gas (Master) Account Number(s)
B11: Customer Contact First Name (For LOA to be addressed to) | C11: William
B12: Customer Contact Last Name (For LOA to be addressed to) | C12: Smith
B13: Customer Contact Title | C13: Director of Housing Management
B14: Customer Company Name | C14: Housing Care LLC
B15: Customer Contact Phone Number | C15: 8605419852
B16: Customer E-mail Address
B17: Customer Street Number (if different)
B18: Customer Street (if different)
B19: Customer City (if different)
B20: Customer Zip Code (if different)
B21: Contractor Company Name
B33: Contractor Contact Person
B34: Contractor Project Contact Phone Number
B35: Contractor Project Contact E-mail Address
B36: Contractor Company Address
B37: Estimated number of weeks project will take to complete once LOA is executed
B38: Will incentive be paid to Customer or Contractor?
B39: Incentive check payable to: Name of company and company representative
B40: Incentive check payee: company address
B41: Utility Contact - Project Lead
B42: Is Income Eligible or Market Rate Property
B43: Total Measures being proposed
B44: Building Type | C44: Multifamily Low-Rise Apartments
B45: Number of dwelling units in project | C45: 30
B46: Heating Fuel | C46: Electric
B47: DHW Fuel | C47: Electric
B48: Cooling System | C48: None
B49: Heating Utility | C49: None
B50: Electric Utility | C50: None
A51: Note: select yes for measures being proposed
B52: Property Energy Efficiency Upgrades | C52: Proposed | D52: Reason For Not Considering | E52: Heath and Safety Issue
A53: 1 | B53: Air Sealing (Blower Door)
A54: 2 | B54: Duct Sealing
A55: 3 | B55: Water Measures
A56: 4 | B56: Dwelling Unit Lighting
A57: 5 | B57: Common and Exterior Lighting
A58: 6 | B58: Insulation
A59: 7 | B59: Window Replacements
A60: 8 | B60: Refrigerators Replacement
A61: 9 | B61: HVAC
A62: 10 | B62: Custom Measure
A63: 11 | B63: None
A64: 12 | B64: None
A65: 13 | B65: None
A66: 14 | B66: None
A67: 15 | B67: None

Sheet Core Services - Unit Matrix
A1: ='Step 1 - Project Info'!$C$3&" - "&'Step 1 - Project Info'!$C$7 -> Winem Apartments - Ashford
A3: Instructions
A4: Core services includes the following dwelling unit measures assessed and implemented by a weatherization contractor*: air sealing, duct sealing, water conservation (e.g., low flow shower heads, faucet aerators, pipe wrap), and light bulbs.
A5: 1) A 10% representative sampling of dwelling units across the multifamily property must be conducted to determine the energy savings opportunities. Units sampled should be 10% of each unit type based on # bedrooms/studios and location (e.g., top corner, top middle, bottom corner, bottom middle, middle floor corner, middle floor center, etc.).
A6: 2) During sampling, a contractor will perform core services in each of the identified sample units.
A7: 3) For each sample unit, please complete the below table which summarizes the measures performed during sampling.
A8: 4) For each sample unit, provide detailed information regarding measures installed during sampling on the applicable tabs generated within this Project Fillout Form.
A10: Total Units by Type | B10: Quantity
A11: Efficiency/ Studio
A12: 1 Bedrooms
A13: 2 Bedrooms
A14: 3 Bedrooms
A15: 4 Bedrooms
C18: Unit Identification in sample | D18: Air Sealing | E18: Duct Sealing | F18: Water Conservation | G18: Dwelling Unit Lighting | J18: =IF(C19<>"",IF('Step 1 - Project Info'!$C$53<>"",IF('Step 1 - Project Info'!$C$53="Yes","Air Sealing",None),""),"") -> 
C19: Unit 101 | D19: Air Sealing | E19: Duct Sealing | F19: Water Conservation | G19: Dwelling Unit Lighting
A39: *If your project has any of the core services measures specified and you are not using a certified weatherization contractor, please complete the applicable Project Fillout Form tab(s).

Sheet Air Sealing (Blower Door) (hidden)
C2: ='Step 1 - Project Info'!$C$3&" - "&'Step 1 - Project Info'!$C$7 -> Winem Apartments - Ashford
C4: Total Number of Units | D4: ='Step 1 - Project Info'!C45 -> 30 | G4: Note: Units sample should be 10% of each unit type (# bedrooms/ Studios, Location (Top Corner, Top Middle, Bottom Corner, Bottom Middle, Mid Fl Corner, Mid Fl Center)) | M4: Note: Provide before and after pictures of areas air sealed to get the post blower door results, Provide pictures of Manometer before and after readings. All picture files can be included in any form that is convenient to you (such as word, pdf, dropbox), however, it should be readable or visible by Eversource staff.
C5: Total Sample Units | D5: =COUNTA('Core Services - Unit Matrix'!C19:C36) -> 1
C6: Name of Lead Technician w/ BPI Multifamily Certification | M6: AIR SEALING DETAIL
C7: Techician's BPI ID # | M7: (1) What was air sealed? Air sealing CFM reduction and location on exterior or interior wall | P7: (2) What was air sealed? Air sealing CFM reduction and location on exterior or interior wall | S7: (3) What was air sealed? Air sealing CFM reduction and location on exterior or interior wall | V7: (4) What was air sealed? Air sealing CFM reduction and location on exterior or interior wall
C8: Sample Apt # | D8: Is Entrance Door Interior/ Exterior? | E8: Bedroom type (Studio, 1BDRM, etc..) | F8: Unit Locations (Top, Corner, Bottom, Middle) | G8: SqFT of Unit | H8: Age (years) of Building | I8: Pre Blower Door CFM at 50 PA | J8: Post Blower Door CFM at 50 | K8: CFM Reduction | L8: NOTES | M8: What was Air Sealed? | N8: Air Sealing CFM Reduction | O8: Interior Wall, Exterior Wall, Interior Ceiling, Attic Floor, Basement Ceiling, Interior Ceiling, Basement Exterior walls, Other please specify: | P8: What was Air Sealed? | Q8: Air Sealing CFM Reduction | R8: Interior Wall, Exterior Wall, Interior Ceiling, Attic Floor, Basement Ceiling, Interior Ceiling, Basement Exterior walls, Other please specify: | S8: What was Air Sealed? | T8: Air Sealing CFM Reduction | U8: Interior Wall, Exterior Wall, Interior Ceiling, Attic Floor, Basement Ceiling, Interior Ceiling, Basement Exterior walls, Other please specify: | V8: What was Air Sealed? | W8: Air Sealing CFM Reduction | X8: Interior Wall, Exterior Wall, Interior Ceiling, Attic Floor, Basement Ceiling, Interior Ceiling, Basement Exterior walls, Other please specify:
B9: EXAMPLE | C9: =IF('Core Services - Unit Matrix'!D19="Air Sealing",'Core Services - Unit Matrix'!C19,"") -> Unit 101 | D9: Interior | E9: 1 BDRM | F9: TOP FL | G9: 1100 | H9: 1980 | I9: 1000 | J9: 800 | K9: 200 | M9: bottom and top plate/ 35 CFM/ exterior wall | N9: 35 | P9: Kitchen sink penetration | Q9: 10 | R9: interior wall | S9: bathroom exhaust vent | T9: 12 | U9: attic ceiling | V9: bathroom exhaust vent | W9: bathroom exhaust vent | X9: bathroom exhaust vent
C10: =IF('Core Services - Unit Matrix'!D20="Air Sealing",'Core Services - Unit Matrix'!C20,"") -> 
C11: =IF('Core Services - Unit Matrix'!D21="Air Sealing",'Core Services - Unit Matrix'!C21,"") -> 
C12: =IF('Core Services - Unit Matrix'!D22="Air Sealing",'Core Services - Unit Matrix'!C22,"") -> 
C13: =IF('Core Services - Unit Matrix'!D23="Air Sealing",'Core Services - Unit Matrix'!C23,"") -> 
C14: =IF('Core Services - Unit Matrix'!D24="Air Sealing",'Core Services - Unit Matrix'!C24,"") -> 
C15: =IF('Core Services - Unit Matrix'!D25="Air Sealing",'Core Services - Unit Matrix'!C25,"") -> 
C16: =IF('Core Services - Unit Matrix'!D26="Air Sealing",'Core Services - Unit Matrix'!C26,"") -> 
C17: =IF('Core Services - Unit Matrix'!D27="Air Sealing",'Core Services - Unit Matrix'!C27,"") -> 
C18: =IF('Core Services - Unit Matrix'!D28="Air Sealing",'Core Services - Unit Matrix'!C28,"") -> 
C19: =IF('Core Services - Unit Matrix'!D29="Air Sealing",'Core Services - Unit Matrix'!C29,"") -> 
C20: =IF('Core Services - Unit Matrix'!D30="Air Sealing",'Core Services - Unit Matrix'!C30,"") -> 
C21: =IF('Core Services - Unit Matrix'!D31="Air Sealing",'Core Services - Unit Matrix'!C31,"") -> 
C22: =IF('Core Services - Unit Matrix'!D32="Air Sealing",'Core Services - Unit Matrix'!C32,"") -> 
C23: =IF('Core Services - Unit Matrix'!D33="Air Sealing",'Core Services - Unit Matrix'!C33,"") -> 

Sheet Duct Sealing (hidden)
A1: ="Duct Blaster Testing - " & 'Step 1 - Project Info'!C3 -> Duct Blaster Testing - Winem Apartments
A3: Sample Apt # | B3: Ductwork (Yes or No) / in condition or uncondition space | C3: Bedroom type (Studio, 1BDRM, etc..) | D3: Unit Locations (Top, Corner, Bottom, Middle) | E3: SqFT of Unit | F3: Pre Duct Blaster CFM at 25 PA | G3: Post Duct Blaster CFM at 25 | H3: CFM Reduction
A4: =IF('Core Services - Unit Matrix'!E19="Duct Sealing",'Core Services - Unit Matrix'!C19,"") -> Unit 101
A5: =IF('Core Services - Unit Matrix'!E20="Duct Sealing",'Core Services - Unit Matrix'!C20,"") -> 
A6: =IF('Core Services - Unit Matrix'!E21="Duct Sealing",'Core Services - Unit Matrix'!C21,"") -> 
A7: =IF('Core Services - Unit Matrix'!E22="Duct Sealing",'Core Services - Unit Matrix'!C22,"") -> 
A8: =IF('Core Services - Unit Matrix'!E23="Duct Sealing",'Core Services - Unit Matrix'!C23,"") -> 
A9: =IF('Core Services - Unit Matrix'!E24="Duct Sealing",'Core Services - Unit Matrix'!C24,"") -> 
A10: =IF('Core Services - Unit Matrix'!E25="Duct Sealing",'Core Services - Unit Matrix'!C25,"") -> 
A11: =IF('Core Services - Unit Matrix'!E26="Duct Sealing",'Core Services - Unit Matrix'!C26,"") -> 
A12: =IF('Core Services - Unit Matrix'!E27="Duct Sealing",'Core Services - Unit Matrix'!C27,"") -> 
A13: =IF('Core Services - Unit Matrix'!E28="Duct Sealing",'Core Services - Unit Matrix'!C28,"") -> 
A14: =IF('Core Services - Unit Matrix'!E29="Duct Sealing",'Core Services - Unit Matrix'!C29,"") -> 

Sheet Low Flow DHW (hidden)
E3: ='Step 1 - Project Info'!$C$3&" - "&'Step 1 - Project Info'!$C$7 -> Winem Apartments - Ashford
E6: WATER MEASURES | F6: Quantity | G6: Cost per Measure | H6: Total Cost
E7: Hand Held Showerhead | H7: =G7*F7 -> 0
A8: Flip & Swivel Aerator | E8: Install Low-Flow Showerhead | H8: =G8*F8 -> 0
A9: Hand Held Showerhead | E9: Install Low- Flow Aerator | H9: =G9*F9 -> 0
A10: Install Low- Flow Aerator | E10: Flip & Swivel Aerator | H10: =G10*F10 -> 0
A11: Install Low-Flow Showerhead | G11: Total Cost | H11: =SUM(H7:H10) -> 0
C16: Sample Unit # | D16: Existing Kitchen Sink GPM | E16: Bathroom Sink GPM | F16: Bathroom Shower GPM | G16: =E9 -> Install Low- Flow Aerator | H16: =E10 -> Flip & Swivel Aerator | I16: =E8 -> Install Low-Flow Showerhead | J16: =E7 -> Hand Held Showerhead | K16: NOTES
C17: =IF('Core Services - Unit Matrix'!F19="Water Conservation",'Core Services - Unit Matrix'!C19,"") -> Unit 101
C18: =IF('Core Services - Unit Matrix'!F20="Water Conservation",'Core Services - Unit Matrix'!C20,"") -> 
C19: =IF('Core Services - Unit Matrix'!F21="Water Conservation",'Core Services - Unit Matrix'!C21,"") -> 
C20: =IF('Core Services - Unit Matrix'!F22="Water Conservation",'Core Services - Unit Matrix'!C22,"") -> 
C21: =IF('Core Services - Unit Matrix'!F23="Water Conservation",'Core Services - Unit Matrix'!C23,"") -> 
C22: =IF('Core Services - Unit Matrix'!F24="Water Conservation",'Core Services - Unit Matrix'!C24,"") -> 
C23: =IF('Core Services - Unit Matrix'!F25="Water Conservation",'Core Services - Unit Matrix'!C25,"") -> 
C24: =IF('Core Services - Unit Matrix'!F26="Water Conservation",'Core Services - Unit Matrix'!C26,"") -> 
C25: =IF('Core Services - Unit Matrix'!F27="Water Conservation",'Core Services - Unit Matrix'!C27,"") -> 
C26: =IF('Core Services - Unit Matrix'!F28="Water Conservation",'Core Services - Unit Matrix'!C28,"") -> 
C27: =IF('Core Services - Unit Matrix'!F29="Water Conservation",'Core Services - Unit Matrix'!C29,"") -> 
C28: =IF('Core Services - Unit Matrix'!F30="Water Conservation",'Core Services - Unit Matrix'!C30,"") -> 
C29: =IF('Core Services - Unit Matrix'!F31="Water Conservation",'Core Services - Unit Matrix'!C31,"") -> 
C30: =IF('Core Services - Unit Matrix'!F32="Water Conservation",'Core Services - Unit Matrix'!C32,"") -> 
C31: =IF('Core Services - Unit Matrix'!F33="Water Conservation",'Core Services - Unit Matrix'!C33,"") -> 
C32: =IF('Core Services - Unit Matrix'!F34="Water Conservation",'Core Services - Unit Matrix'!C34,"") -> 
C33: =IF('Core Services - Unit Matrix'!F35="Water Conservation",'Core Services - Unit Matrix'!C35,"") -> 
C34: =IF('Core Services - Unit Matrix'!F36="Water Conservation",'Core Services - Unit Matrix'!C36,"") -> 

Sheet Dwelling Unit Lighting (hidden)
C2: Date | H2: Company and Auditor Name | O2: Total Units by Type | P2: Quantity
C3: Site Name | D3: ='Step 1 - Project Info'!C3 -> Winem Apartments | O3: Efficiency/ Studio | P3: ='Core Services - Unit Matrix'!B11 -> 0
C4: Site Address | D4: =CONCATENATE('Step 1 - Project Info'!C4," ",'Step 1 - Project Info'!C5," ",'Step 1 - Project Info'!C7) -> 31 Field St. Ashford | H4: Apartment Number | O4: 1 Bedrooms | P4: ='Core Services - Unit Matrix'!B12 -> 0
C5: Building Number | H5: # of Bedrooms | O5: 2 Bedrooms | P5: ='Core Services - Unit Matrix'!B13 -> 0
C6: See notes below | O6: 3 Bedrooms | P6: ='Core Services - Unit Matrix'!B14 -> 0
O7: 4 Bedrooms | P7: ='Core Services - Unit Matrix'!B15 -> 0
C8: Sample Unit # | D8: Room Location | E8: Existing Lamp Type | F8: Existing Lamp Wattage | G8: Existing Lamp Quantity | H8: Existing Fixture Type | I8: Existing Fixture Quantity | J8: Existing Fixture Wattage | K8: Proposed Lighting Measure | L8: Proposed Fixture Type | M8: Proposed Fixture Quantity | N8: Proposed Fixture Wattage | O8: Recommendation (Brand/Model Number): | P8: Comments/Notes:
D9: Unit type and Unit number
B10: Example | D10: Example
A11: IF('Core Services - Unit Matrix'!$C$12="",IF('Core Services - Unit Matrix'!$C$13="",IF('Core Services - Unit Matrix'!$C$14="",'Core Services - Unit Matrix'!$C$12"") | B11: Example | C11: =IF('Core Services - Unit Matrix'!$G$19="Dwelling Unit Lighting",'Core Services - Unit Matrix'!$C$19,"") -> Unit 101
B12: Example | C12: =IF('Core Services - Unit Matrix'!$G$19="Dwelling Unit Lighting",'Core Services - Unit Matrix'!$C$19,"") -> Unit 101 | D12: Bedroom | E12: CFL | F12: 13 | G12: 2 | H12: drum | I12: 1 | J12: 28 | K12: New fixture | L12: drum
B13: Example | C13: =IF('Core Services - Unit Matrix'!$G$19="Dwelling Unit Lighting",'Core Services - Unit Matrix'!$C$19,"") -> Unit 101 | D13: Hallway | E13: Inc | F13: 60 | G13: 2 | H13: drum | I13: 1 | J13: 120 | K13: New fixture | L13: drum
B14: Example | C14: =IF('Core Services - Unit Matrix'!$G$19="Dwelling Unit Lighting",'Core Services - Unit Matrix'!$C$19,"") -> Unit 101 | D14: Living Room | E14: CFL | F14: 13 | G14: 2 | H14: drum | I14: 1 | J14: 28 | K14: New fixture | L14: drum
B15: Example | C15: =IF('Core Services - Unit Matrix'!$G$19="Dwelling Unit Lighting",'Core Services - Unit Matrix'!$C$19,"") -> Unit 101 | D15: Living Room | E15: Inc | F15: 60 | G15: 2 | H15: table lamp | I15: 2 | J15: 120 | K15: Screw-in bulb | L15: table lamp
B16: Example | C16: =IF('Core Services - Unit Matrix'!$G$19="Dwelling Unit Lighting",'Core Services - Unit Matrix'!$C$19,"") -> Unit 101
B17: Example | C17: =IF('Core Services - Unit Matrix'!$G$19="Dwelling Unit Lighting",'Core Services - Unit Matrix'!$C$19,"") -> Unit 101
B18: Example | C18: =IF('Core Services - Unit Matrix'!$G$19="Dwelling Unit Lighting",'Core Services - Unit Matrix'!$C$19,"") -> Unit 101
B19: Example | C19: =IF('Core Services - Unit Matrix'!$G$19="Dwelling Unit Lighting",'Core Services - Unit Matrix'!$C$19,"") -> Unit 101
B20: Example | C20: =IF('Core Services - Unit Matrix'!$G$19="Dwelling Unit Lighting",'Core Services - Unit Matrix'!$C$19,"") -> Unit 101
B21: Example | C21: =IF('Core Services - Unit Matrix'!$G$19="Dwelling Unit Lighting",'Core Services - Unit Matrix'!$C$19,"") -> Unit 101
B22: Example | C22: =IF('Core Services - Unit Matrix'!$G$19="Dwelling Unit Lighting",'Core Services - Unit Matrix'!$C$19,"") -> Unit 101
B23: Example | C23: =IF('Core Services - Unit Matrix'!$G$19="Dwelling Unit Lighting",'Core Services - Unit Matrix'!$C$19,"") -> Unit 101
B24: Example | C24: =IF('Core Services - Unit Matrix'!$G$19="Dwelling Unit Lighting",'Core Services - Unit Matrix'!$C$19,"") -> Unit 101
B25: Example | C25: =IF('Core Services - Unit Matrix'!$G$19="Dwelling Unit Lighting",'Core Services - Unit Matrix'!$C$19,"") -> Unit 101
B26: Example | C26: =IF('Core Services - Unit Matrix'!$G$19="Dwelling Unit Lighting",'Core Services - Unit Matrix'!$C$19,"") -> Unit 101
B27: Example
B28: Example | C28: =IF('Core Services - Unit Matrix'!$G$20="Dwelling Unit Lighting",'Core Services - Unit Matrix'!$C$20,"") -> 
B29: Example | C29: =IF('Core Services - Unit Matrix'!$G$20="Dwelling Unit Lighting",'Core Services - Unit Matrix'!$C$20,"") ->  | D29: Kitchen | E29: CFL | F29: 13 | G29: 2 | H29: drum | I29: 1 | J29: 28 | K29: New fixture | L29: drum | M29: 1 | N29: 23 | O29: LED23TM8
A30: IF(A31=A13,'Core Services - Unit Matrix'!$C$14,IF('Core Services - Unit Matrix'!$G$13<>"Dwelling Unit Lighting",IF('Core Services - Unit Matrix'!$G$14<>"Dwelling Unit Lighting",IF('Core Services - Unit Matrix'!$G$15<>"Dwelling Unit Lighting",IF('Core Services - Unit Matrix'!$G$16<>"Dwelling Unit Lighting",IF('Core Services - Unit Matrix'!$G$17<>"Dwelling Unit Lighting",IF('Core Services - Unit Matrix'!$G$18<>"Dwelling Unit Lighting",IF('Core Services - Unit Matrix'!$G$19<>"Dwelling Unit Lighting",IF('Core Services - Unit Matrix'!$G$20<>"Dwelling Unit Lighting",IF('Core Services - Unit Matrix'!$G$21<>"Dwelling Unit Lighting","",'Core Services - Unit Matrix'!$C$21),'Core Services - Unit Matrix'!$C$20),'Core Services - Unit Matrix'!$C$19),'Core Services - Unit Matrix'!$C$18),'Core Services - Unit Matrix'!$C$17),'Core Services - Unit Matrix'!$C$16),'Core Services - Unit Matrix'!$C$15),'Core Services - Unit Matrix'!$C$14),'Core Services - Unit Matrix'!$C$13)) | C30: =IF('Core Services - Unit Matrix'!$G$20="Dwelling Unit Lighting",'Core Services - Unit Matrix'!$C$20,"") ->  | D30: Bedroom 1 | E30: CFL | F30: 13 | G30: 2 | H30: drum | I30: 1 | J30: 28 | L30: drum
C31: =IF('Core Services - Unit Matrix'!$G$20="Dwelling Unit Lighting",'Core Services - Unit Matrix'!$C$20,"") ->  | D31: Bathroom 1 - Ceiling | E31: CFL | F31: 13 | G31: 2 | H31: drum | I31: 1 | J31: 28 | L31: drum
C32: =IF('Core Services - Unit Matrix'!$G$20="Dwelling Unit Lighting",'Core Services - Unit Matrix'!$C$20,"") ->  | D32: Front Exterior Entry | E32: Inc | F32: 60 | G32: 2 | H32: table lamp | I32: 2 | J32: 120 | K32: Screw-in bulb | L32: table lamp
C33: =IF('Core Services - Unit Matrix'!$G$20="Dwelling Unit Lighting",'Core Services - Unit Matrix'!$C$20,"") ->  | D33: Hall Way | E33: None
C34: =IF('Core Services - Unit Matrix'!$G$20="Dwelling Unit Lighting",'Core Services - Unit Matrix'!$C$20,"") ->  | D34: Closet | E34: CFL | F34: 13 | G34: 2 | H34: drum | I34: 1 | J34: 28 | L34: drum
B35: Example | C35: =IF('Core Services - Unit Matrix'!$G$20="Dwelling Unit Lighting",'Core Services - Unit Matrix'!$C$20,"") ->  | D35: Kitchen - Sink | E35: Inc | F35: 60 | G35: 2 | H35: drum | I35: 1 | J35: 120 | L35: drum
B36: Example | C36: =IF('Core Services - Unit Matrix'!$G$20="Dwelling Unit Lighting",'Core Services - Unit Matrix'!$C$20,"") ->  | D36: Living Room - Ceiling Fan
B37: Example | C37: =IF('Core Services - Unit Matrix'!$G$20="Dwelling Unit Lighting",'Core Services - Unit Matrix'!$C$20,"") ->  | D37: Living Room- Floor Lamp | E37: Inc | F37: 60 | G37: 1 | H37: floor lamp | I37: 2 | J37: 60 | K37: Screw-in bulb | L37: floor lamp
B38: Example | C38: =IF('Core Services - Unit Matrix'!$G$20="Dwelling Unit Lighting",'Core Services - Unit Matrix'!$C$20,"") ->  | D38: Dining Room
B39: Example | C39: =IF('Core Services - Unit Matrix'!$G$20="Dwelling Unit Lighting",'Core Services - Unit Matrix'!$C$20,"") ->  | D39: Dining Room - Table Lamp | E39: Inc | F39: 60 | G39: 2 | H39: table lamp | I39: 2 | J39: 120 | K39: Screw-in bulb | L39: table lamp
B40: Example | C40: =IF('Core Services - Unit Matrix'!$G$20="Dwelling Unit Lighting",'Core Services - Unit Matrix'!$C$20,"") ->  | D40: Bedroom 1 | E40: None
B41: Example | C41: =IF('Core Services - Unit Matrix'!$G$20="Dwelling Unit Lighting",'Core Services - Unit Matrix'!$C$20,"") ->  | D41: Hall Way | E41: None
B42: Example | C42: =IF('Core Services - Unit Matrix'!$G$20="Dwelling Unit Lighting",'Core Services - Unit Matrix'!$C$20,"") ->  | D42: Closet | E42: None
B43: Example | C43: =IF('Core Services - Unit Matrix'!$G$20="Dwelling Unit Lighting",'Core Services - Unit Matrix'!$C$20,"") ->  | D43: Pantry | E43: None
B44: Example
B45: Example | C45: =IF('Core Services - Unit Matrix'!$G$21="Dwelling Unit Lighting",'Core Services - Unit Matrix'!$C$21,"") -> 
B46: Example | C46: =IF('Core Services - Unit Matrix'!$G$21="Dwelling Unit Lighting",'Core Services - Unit Matrix'!$C$21,"") ->  | D46: Kitchen | E46: CFL | F46: 13 | G46: 2 | H46: drum | I46: 1 | J46: 28 | K46: New fixture | L46: drum | M46: 1 | N46: 23 | O46: LED23TM8
B47: Example | C47: =IF('Core Services - Unit Matrix'!$G$21="Dwelling Unit Lighting",'Core Services - Unit Matrix'!$C$21,"") ->  | D47: Kitchen - Sink | E47: Inc | F47: 60 | G47: 2 | H47: drum | I47: 1 | J47: 120 | L47: drum
B48: Example | C48: =IF('Core Services - Unit Matrix'!$G$21="Dwelling Unit Lighting",'Core Services - Unit Matrix'!$C$21,"") ->  | D48: Living Room - Ceiling Fan | E48: None
B49: Example | C49: =IF('Core Services - Unit Matrix'!$G$21="Dwelling Unit Lighting",'Core Services - Unit Matrix'!$C$21,"") ->  | D49: Living Room- Floor Lamp | E49: Inc | F49: 60 | G49: 1 | H49: floor lamp | I49: 2 | J49: 60 | K49: Screw-in bulb | L49: floor lamp
B50: Example | C50: =IF('Core Services - Unit Matrix'!$G$21="Dwelling Unit Lighting",'Core Services - Unit Matrix'!$C$21,"") ->  | D50: Dining Room | E50: None
B51: Example | C51: =IF('Core Services - Unit Matrix'!$G$21="Dwelling Unit Lighting",'Core Services - Unit Matrix'!$C$21,"") ->  | D51: Dining Room - Table Lamp | E51: Inc | F51: 60 | G51: 2 | H51: table lamp | I51: 2 | J51: 120 | K51: Screw-in bulb | L51: table lamp
B52: Example | C52: =IF('Core Services - Unit Matrix'!$G$21="Dwelling Unit Lighting",'Core Services - Unit Matrix'!$C$21,"") ->  | D52: Bedroom 1 | E52: CFL | F52: 13 | G52: 2 | H52: drum | I52: 1 | J52: 28 | L52: drum
B53: Example | C53: =IF('Core Services - Unit Matrix'!$G$21="Dwelling Unit Lighting",'Core Services - Unit Matrix'!$C$21,"") ->  | D53: Bedroom 2 | E53: CFL | F53: 13 | G53: 2 | H53: drum | I53: 1 | J53: 28 | L53: drum
B54: Example | C54: =IF('Core Services - Unit Matrix'!$G$21="Dwelling Unit Lighting",'Core Services - Unit Matrix'!$C$21,"") ->  | D54: Bedroom 2 - Table Lamp | E54: Inc | F54: 60 | G54: 2 | H54: table lamp | I54: 2 | J54: 120 | K54: Screw-in bulb | L54: table lamp
B55: Example | C55: =IF('Core Services - Unit Matrix'!$G$21="Dwelling Unit Lighting",'Core Services - Unit Matrix'!$C$21,"") ->  | D55: Hall Way | E55: None
B56: Example | C56: =IF('Core Services - Unit Matrix'!$G$21="Dwelling Unit Lighting",'Core Services - Unit Matrix'!$C$21,"") ->  | D56: Closet | E56: CFL | F56: 13 | G56: 2 | H56: drum | I56: 1 | J56: 28 | L56: drum
B57: Example | C57: =IF('Core Services - Unit Matrix'!$G$21="Dwelling Unit Lighting",'Core Services - Unit Matrix'!$C$21,"") ->  | D57: Pantry | E57: None
B58: Example | C58: =IF('Core Services - Unit Matrix'!$G$21="Dwelling Unit Lighting",'Core Services - Unit Matrix'!$C$21,"") ->  | D58: Garage | E58: CFL | F58: 13 | G58: 2 | H58: drum | I58: 1 | J58: 28 | L58: drum
B59: Example | C59: =IF('Core Services - Unit Matrix'!$G$21="Dwelling Unit Lighting",'Core Services - Unit Matrix'!$C$21,"") ->  | D59: Basement | E59: None
B60: Example | C60: =IF('Core Services - Unit Matrix'!$G$21="Dwelling Unit Lighting",'Core Services - Unit Matrix'!$C$21,"") ->  | D60: Bathroom 1 - Ceiling | E60: CFL | F60: 13 | G60: 2 | H60: drum | I60: 1 | J60: 26 | K60: New fixture | L60: drum
B61: Example
B62: Example | C62: =IF('Core Services - Unit Matrix'!$G$22="Dwelling Unit Lighting",'Core Services - Unit Matrix'!$C$22,"") -> 
B63: Example | C63: =IF('Core Services - Unit Matrix'!$G$22="Dwelling Unit Lighting",'Core Services - Unit Matrix'!$C$22,"") ->  | D63: Kitchen | E63: Inc | F63: 60 | G63: 2 | H63: drum | I63: 1 | J63: 120 | L63: drum
B64: Example | C64: =IF('Core Services - Unit Matrix'!$G$22="Dwelling Unit Lighting",'Core Services - Unit Matrix'!$C$22,"") ->  | D64: Kitchen | E64: 4'T12 | F64: 34 | G64: 2 | H64: troffer | I64: 1 | J64: 74 | L64: troffer
B65: Example | C65: =IF('Core Services - Unit Matrix'!$G$22="Dwelling Unit Lighting",'Core Services - Unit Matrix'!$C$22,"") ->  | D65: Kitchen | E65: 4'T12 | F65: 34 | G65: 2 | H65: troffer | I65: 2 | J65: 74 | L65: troffer
B66: Example | C66: =IF('Core Services - Unit Matrix'!$G$22="Dwelling Unit Lighting",'Core Services - Unit Matrix'!$C$22,"") ->  | D66: Bedroom 1
B67: Example | C67: =IF('Core Services - Unit Matrix'!$G$22="Dwelling Unit Lighting",'Core Services - Unit Matrix'!$C$22,"") ->  | D67: Bedroom 2
B68: Example | C68: =IF('Core Services - Unit Matrix'!$G$22="Dwelling Unit Lighting",'Core Services - Unit Matrix'!$C$22,"") ->  | D68: Bathroom
C69: =IF('Core Services - Unit Matrix'!$G$22="Dwelling Unit Lighting",'Core Services - Unit Matrix'!$C$22,"") -> 
C70: =IF('Core Services - Unit Matrix'!$G$22="Dwelling Unit Lighting",'Core Services - Unit Matrix'!$C$22,"") -> 
C71: =IF('Core Services - Unit Matrix'!$G$22="Dwelling Unit Lighting",'Core Services - Unit Matrix'!$C$22,"") -> 
C72: =IF('Core Services - Unit Matrix'!$G$22="Dwelling Unit Lighting",'Core Services - Unit Matrix'!$C$22,"") -> 
C73: =IF('Core Services - Unit Matrix'!$G$22="Dwelling Unit Lighting",'Core Services - Unit Matrix'!$C$22,"") -> 
C74: =IF('Core Services - Unit Matrix'!$G$22="Dwelling Unit Lighting",'Core Services - Unit Matrix'!$C$22,"") -> 
C75: =IF('Core Services - Unit Matrix'!$G$22="Dwelling Unit Lighting",'Core Services - Unit Matrix'!$C$22,"") -> 
C76: =IF('Core Services - Unit Matrix'!$G$22="Dwelling Unit Lighting",'Core Services - Unit Matrix'!$C$22,"") -> 
C78: =IF('Core Services - Unit Matrix'!$G$23="Dwelling Unit Lighting",'Core Services - Unit Matrix'!$C$23,"") -> 
C79: =IF('Core Services - Unit Matrix'!$G$23="Dwelling Unit Lighting",'Core Services - Unit Matrix'!$C$23,"") -> 
C80: =IF('Core Services - Unit Matrix'!$G$23="Dwelling Unit Lighting",'Core Services - Unit Matrix'!$C$23,"") -> 
C81: =IF('Core Services - Unit Matrix'!$G$23="Dwelling Unit Lighting",'Core Services - Unit Matrix'!$C$23,"") -> 
C82: =IF('Core Services - Unit Matrix'!$G$23="Dwelling Unit Lighting",'Core Services - Unit Matrix'!$C$23,"") -> 
C83: =IF('Core Services - Unit Matrix'!$G$23="Dwelling Unit Lighting",'Core Services - Unit Matrix'!$C$23,"") -> 
C84: =IF('Core Services - Unit Matrix'!$G$23="Dwelling Unit Lighting",'Core Services - Unit Matrix'!$C$23,"") -> 
C85: =IF('Core Services - Unit Matrix'!$G$23="Dwelling Unit Lighting",'Core Services - Unit Matrix'!$C$23,"") -> 
C86: =IF('Core Services - Unit Matrix'!$G$23="Dwelling Unit Lighting",'Core Services - Unit Matrix'!$C$23,"") -> 
C87: =IF('Core Services - Unit Matrix'!$G$23="Dwelling Unit Lighting",'Core Services - Unit Matrix'!$C$23,"") -> 
C88: =IF('Core Services - Unit Matrix'!$G$23="Dwelling Unit Lighting",'Core Services - Unit Matrix'!$C$23,"") -> 
C89: =IF('Core Services - Unit Matrix'!$G$23="Dwelling Unit Lighting",'Core Services - Unit Matrix'!$C$23,"") -> 
C90: =IF('Core Services - Unit Matrix'!$G$23="Dwelling Unit Lighting",'Core Services - Unit Matrix'!$C$23,"") -> 
C91: =IF('Core Services - Unit Matrix'!$G$23="Dwelling Unit Lighting",'Core Services - Unit Matrix'!$C$23,"") -> 
C92: =IF('Core Services - Unit Matrix'!$G$23="Dwelling Unit Lighting",'Core Services - Unit Matrix'!$C$23,"") -> 
C94: =IF('Core Services - Unit Matrix'!$G$24="Dwelling Unit Lighting",'Core Services - Unit Matrix'!$C$24,"") -> 
C95: =IF('Core Services - Unit Matrix'!$G$24="Dwelling Unit Lighting",'Core Services - Unit Matrix'!$C$24,"") -> 
C96: =IF('Core Services - Unit Matrix'!$G$24="Dwelling Unit Lighting",'Core Services - Unit Matrix'!$C$24,"") -> 
C97: =IF('Core Services - Unit Matrix'!$G$24="Dwelling Unit Lighting",'Core Services - Unit Matrix'!$C$24,"") -> 
C98: =IF('Core Services - Unit Matrix'!$G$24="Dwelling Unit Lighting",'Core Services - Unit Matrix'!$C$24,"") -> 
C99: =IF('Core Services - Unit Matrix'!$G$24="Dwelling Unit Lighting",'Core Services - Unit Matrix'!$C$24,"") -> 
C100: =IF('Core Services - Unit Matrix'!$G$24="Dwelling Unit Lighting",'Core Services - Unit Matrix'!$C$24,"") -> 
C101: =IF('Core Services - Unit Matrix'!$G$24="Dwelling Unit Lighting",'Core Services - Unit Matrix'!$C$24,"") -> 
C102: =IF('Core Services - Unit Matrix'!$G$24="Dwelling Unit Lighting",'Core Services - Unit Matrix'!$C$24,"") -> 
C103: =IF('Core Services - Unit Matrix'!$G$24="Dwelling Unit Lighting",'Core Services - Unit Matrix'!$C$24,"") -> 
C104: =IF('Core Services - Unit Matrix'!$G$24="Dwelling Unit Lighting",'Core Services - Unit Matrix'!$C$24,"") -> 
C105: =IF('Core Services - Unit Matrix'!$G$24="Dwelling Unit Lighting",'Core Services - Unit Matrix'!$C$24,"") -> 
C106: =IF('Core Services - Unit Matrix'!$G$24="Dwelling Unit Lighting",'Core Services - Unit Matrix'!$C$24,"") -> 
C107: =IF('Core Services - Unit Matrix'!$G$24="Dwelling Unit Lighting",'Core Services - Unit Matrix'!$C$24,"") -> 
C108: =IF('Core Services - Unit Matrix'!$G$24="Dwelling Unit Lighting",'Core Services - Unit Matrix'!$C$24,"") -> 
C110: =IF('Core Services - Unit Matrix'!$G$25="Dwelling Unit Lighting",'Core Services - Unit Matrix'!$C$25,"") -> 
C111: =IF('Core Services - Unit Matrix'!$G$25="Dwelling Unit Lighting",'Core Services - Unit Matrix'!$C$25,"") -> 
C112: =IF('Core Services - Unit Matrix'!$G$25="Dwelling Unit Lighting",'Core Services - Unit Matrix'!$C$25,"") -> 
C113: =IF('Core Services - Unit Matrix'!$G$25="Dwelling Unit Lighting",'Core Services - Unit Matrix'!$C$25,"") -> 
C114: =IF('Core Services - Unit Matrix'!$G$25="Dwelling Unit Lighting",'Core Services - Unit Matrix'!$C$25,"") -> 
C115: =IF('Core Services - Unit Matrix'!$G$25="Dwelling Unit Lighting",'Core Services - Unit Matrix'!$C$25,"") -> 
C116: =IF('Core Services - Unit Matrix'!$G$25="Dwelling Unit Lighting",'Core Services - Unit Matrix'!$C$25,"") -> 
C117: =IF('Core Services - Unit Matrix'!$G$25="Dwelling Unit Lighting",'Core Services - Unit Matrix'!$C$25,"") -> 
C118: =IF('Core Services - Unit Matrix'!$G$25="Dwelling Unit Lighting",'Core Services - Unit Matrix'!$C$25,"") -> 
C119: =IF('Core Services - Unit Matrix'!$G$25="Dwelling Unit Lighting",'Core Services - Unit Matrix'!$C$25,"") -> 
C120: =IF('Core Services - Unit Matrix'!$G$25="Dwelling Unit Lighting",'Core Services - Unit Matrix'!$C$25,"") -> 
C121: =IF('Core Services - Unit Matrix'!$G$25="Dwelling Unit Lighting",'Core Services - Unit Matrix'!$C$25,"") -> 
C122: =IF('Core Services - Unit Matrix'!$G$25="Dwelling Unit Lighting",'Core Services - Unit Matrix'!$C$25,"") -> 
C123: =IF('Core Services - Unit Matrix'!$G$25="Dwelling Unit Lighting",'Core Services - Unit Matrix'!$C$25,"") -> 
C124: =IF('Core Services - Unit Matrix'!$G$25="Dwelling Unit Lighting",'Core Services - Unit Matrix'!$C$25,"") -> 
C125: =IF('Core Services - Unit Matrix'!$G$25="Dwelling Unit Lighting",'Core Services - Unit Matrix'!$C$25,"") -> 
C127: =IF('Core Services - Unit Matrix'!$G$26="Dwelling Unit Lighting",'Core Services - Unit Matrix'!$C$26,"") -> 
C128: =IF('Core Services - Unit Matrix'!$G$26="Dwelling Unit Lighting",'Core Services - Unit Matrix'!$C$26,"") -> 
C129: =IF('Core Services - Unit Matrix'!$G$26="Dwelling Unit Lighting",'Core Services - Unit Matrix'!$C$26,"") -> 
C130: =IF('Core Services - Unit Matrix'!$G$26="Dwelling Unit Lighting",'Core Services - Unit Matrix'!$C$26,"") -> 
C131: =IF('Core Services - Unit Matrix'!$G$26="Dwelling Unit Lighting",'Core Services - Unit Matrix'!$C$26,"") -> 
C132: =IF('Core Services - Unit Matrix'!$G$26="Dwelling Unit Lighting",'Core Services - Unit Matrix'!$C$26,"") -> 
C133: =IF('Core Services - Unit Matrix'!$G$26="Dwelling Unit Lighting",'Core Services - Unit Matrix'!$C$26,"") -> 
C134: =IF('Core Services - Unit Matrix'!$G$26="Dwelling Unit Lighting",'Core Services - Unit Matrix'!$C$26,"") -> 
C135: =IF('Core Services - Unit Matrix'!$G$26="Dwelling Unit Lighting",'Core Services - Unit Matrix'!$C$26,"") -> 
C136: =IF('Core Services - Unit Matrix'!$G$26="Dwelling Unit Lighting",'Core Services - Unit Matrix'!$C$26,"") -> 
C137: =IF('Core Services - Unit Matrix'!$G$26="Dwelling Unit Lighting",'Core Services - Unit Matrix'!$C$26,"") -> 
C138: =IF('Core Services - Unit Matrix'!$G$26="Dwelling Unit Lighting",'Core Services - Unit Matrix'!$C$26,"") -> 
C139: =IF('Core Services - Unit Matrix'!$G$26="Dwelling Unit Lighting",'Core Services - Unit Matrix'!$C$26,"") -> 
C140: =IF('Core Services - Unit Matrix'!$G$26="Dwelling Unit Lighting",'Core Services - Unit Matrix'!$C$26,"") -> 
C141: =IF('Core Services - Unit Matrix'!$G$26="Dwelling Unit Lighting",'Core Services - Unit Matrix'!$C$26,"") -> 
C142: =IF('Core Services - Unit Matrix'!$G$26="Dwelling Unit Lighting",'Core Services - Unit Matrix'!$C$26,"") -> 
C144: =IF('Core Services - Unit Matrix'!$G$27="Dwelling Unit Lighting",'Core Services - Unit Matrix'!$C$27,"") -> 
C145: =IF('Core Services - Unit Matrix'!$G$27="Dwelling Unit Lighting",'Core Services - Unit Matrix'!$C$27,"") -> 
C146: =IF('Core Services - Unit Matrix'!$G$27="Dwelling Unit Lighting",'Core Services - Unit Matrix'!$C$27,"") -> 
C147: =IF('Core Services - Unit Matrix'!$G$27="Dwelling Unit Lighting",'Core Services - Unit Matrix'!$C$27,"") -> 
C148: =IF('Core Services - Unit Matrix'!$G$27="Dwelling Unit Lighting",'Core Services - Unit Matrix'!$C$27,"") -> 
C149: =IF('Core Services - Unit Matrix'!$G$27="Dwelling Unit Lighting",'Core Services - Unit Matrix'!$C$27,"") -> 
C150: =IF('Core Services - Unit Matrix'!$G$27="Dwelling Unit Lighting",'Core Services - Unit Matrix'!$C$27,"") -> 
C151: =IF('Core Services - Unit Matrix'!$G$27="Dwelling Unit Lighting",'Core Services - Unit Matrix'!$C$27,"") -> 
C152: =IF('Core Services - Unit Matrix'!$G$27="Dwelling Unit Lighting",'Core Services - Unit Matrix'!$C$27,"") -> 
C153: =IF('Core Services - Unit Matrix'!$G$27="Dwelling Unit Lighting",'Core Services - Unit Matrix'!$C$27,"") -> 
C154: =IF('Core Services - Unit Matrix'!$G$27="Dwelling Unit Lighting",'Core Services - Unit Matrix'!$C$27,"") -> 
C155: =IF('Core Services - Unit Matrix'!$G$27="Dwelling Unit Lighting",'Core Services - Unit Matrix'!$C$27,"") -> 
C156: =IF('Core Services - Unit Matrix'!$G$27="Dwelling Unit Lighting",'Core Services - Unit Matrix'!$C$27,"") -> 
C157: =IF('Core Services - Unit Matrix'!$G$27="Dwelling Unit Lighting",'Core Services - Unit Matrix'!$C$27,"") -> 
C158: =IF('Core Services - Unit Matrix'!$G$27="Dwelling Unit Lighting",'Core Services - Unit Matrix'!$C$27,"") -> 
C159: =IF('Core Services - Unit Matrix'!$G$27="Dwelling Unit Lighting",'Core Services - Unit Matrix'!$C$27,"") -> 
C161: =IF('Core Services - Unit Matrix'!$G$28="Dwelling Unit Lighting",'Core Services - Unit Matrix'!$C$28,"") -> 
C162: =IF('Core Services - Unit Matrix'!$G$28="Dwelling Unit Lighting",'Core Services - Unit Matrix'!$C$28,"") -> 
C163: =IF('Core Services - Unit Matrix'!$G$28="Dwelling Unit Lighting",'Core Services - Unit Matrix'!$C$28,"") -> 
C164: =IF('Core Services - Unit Matrix'!$G$28="Dwelling Unit Lighting",'Core Services - Unit Matrix'!$C$28,"") -> 
C165: =IF('Core Services - Unit Matrix'!$G$28="Dwelling Unit Lighting",'Core Services - Unit Matrix'!$C$28,"") -> 
C166: =IF('Core Services - Unit Matrix'!$G$28="Dwelling Unit Lighting",'Core Services - Unit Matrix'!$C$28,"") -> 
C167: =IF('Core Services - Unit Matrix'!$G$28="Dwelling Unit Lighting",'Core Services - Unit Matrix'!$C$28,"") -> 
C168: =IF('Core Services - Unit Matrix'!$G$28="Dwelling Unit Lighting",'Core Services - Unit Matrix'!$C$28,"") -> 
C169: =IF('Core Services - Unit Matrix'!$G$28="Dwelling Unit Lighting",'Core Services - Unit Matrix'!$C$28,"") -> 
C170: =IF('Core Services - Unit Matrix'!$G$28="Dwelling Unit Lighting",'Core Services - Unit Matrix'!$C$28,"") -> 
C171: =IF('Core Services - Unit Matrix'!$G$28="Dwelling Unit Lighting",'Core Services - Unit Matrix'!$C$28,"") -> 
C172: =IF('Core Services - Unit Matrix'!$G$28="Dwelling Unit Lighting",'Core Services - Unit Matrix'!$C$28,"") -> 
C173: =IF('Core Services - Unit Matrix'!$G$28="Dwelling Unit Lighting",'Core Services - Unit Matrix'!$C$28,"") -> 
C174: =IF('Core Services - Unit Matrix'!$G$28="Dwelling Unit Lighting",'Core Services - Unit Matrix'!$C$28,"") -> 
C175: =IF('Core Services - Unit Matrix'!$G$28="Dwelling Unit Lighting",'Core Services - Unit Matrix'!$C$28,"") -> 
C176: =IF('Core Services - Unit Matrix'!$G$28="Dwelling Unit Lighting",'Core Services - Unit Matrix'!$C$28,"") -> 

Sheet Common and Exterior Lighting (hidden)
D2: ='Step 1 - Project Info'!$C$3&" - "&'Step 1 - Project Info'!$C$7 -> Winem Apartments - Ashford | L2: Company and Auditor Name
B7: Area Description | C7: Qty Before | D7: Description Before | E7: Watts/ Fixture Before | F7: Annual Hours Before | G7: Item Type - Select From Picklist | H7: Lighting Group Type - Select From Picklist | I7: Qty After | J7: Description After | K7: Watts/ Fixture After | L7: Annual Hours After | M7: Material Cost | N7: Labor Cost | O7: Total Cost/ Group
A8: Example | B8: Exterior Pole Lights | C8: 465 | D8: 70W High Pressure Sodium | E8: 95 | F8: 4004 | G8: Retrofit fixture | H8: High- Performance Exterior | I8: 250 | J8: 20W LED Corn Bulb | K8: 20 | L8: 5000 | M8: 50 | N8: 50 | O8: =IF(G8="Non-Eligible",0,(I8*(N8+M8))) -> 25000
F9: 560 | G9: Retrofit fixture | H9: High- Performance Exterior | O9: =IF(G9="Non-Eligible",0,(I9*(N9+M9))) -> 0
G10: Retrofit fixture | H10: High- Performance Exterior | O10: 0
G11: Retrofit fixture | H11: High- Performance Exterior | O11: 0
G12: Retrofit fixture | H12: High- Performance Exterior | O12: 0
G13: Retrofit fixture | H13: High- Performance Exterior | O13: 0
G14: Retrofit fixture | H14: High- Performance Exterior | O14: 0
A15: Example | B15: Exterior Pole Lights | C15: 70 | D15: 70W High Pressure Sodium | E15: 95 | F15: 4004 | G15: Retrofit fixture | H15: High- Performance Exterior | J15: NA | O15: 0
G16: Retrofit fixture | H16: High- Performance Exterior | O16: 0
G17: Retrofit fixture | H17: High- Performance Exterior | O17: 0
G18: Retrofit fixture | H18: High- Performance Exterior | O18: 0
G19: Retrofit fixture | H19: High- Performance Exterior | O19: 0
G20: Retrofit fixture | H20: High- Performance Exterior | O20: 0
G21: Retrofit fixture | H21: High- Performance Exterior | O21: 0
G22: Retrofit fixture | H22: High- Performance Exterior | O22: 0
G23: Retrofit fixture | H23: High- Performance Exterior | O23: 0
G24: Retrofit fixture | H24: High- Performance Exterior | O24: 0
G25: Retrofit fixture | H25: High- Performance Exterior | O25: 0
G26: Retrofit fixture | H26: High- Performance Exterior | O26: 0
G27: Retrofit fixture | H27: High- Performance Exterior | O27: 0
G28: Retrofit fixture | H28: High- Performance Exterior | O28: 0
G29: Retrofit fixture | H29: High- Performance Exterior | O29: 0
G30: Retrofit fixture | H30: High- Performance Exterior | O30: 0
G31: Retrofit fixture | H31: High- Performance Exterior | O31: 0
G32: Retrofit fixture | H32: High- Performance Exterior | O32: 0
G33: Retrofit fixture | H33: High- Performance Exterior | O33: 0
G34: Retrofit fixture | H34: High- Performance Exterior | O34: 0
G35: Retrofit fixture | H35: High- Performance Exterior | O35: 0
G36: Retrofit fixture | H36: High- Performance Exterior | O36: 0
G37: Retrofit fixture | H37: High- Performance Exterior | O37: 0
G38: Retrofit fixture | H38: High- Performance Exterior | O38: 0
G39: Retrofit fixture | H39: High- Performance Exterior | O39: 0
G40: Retrofit fixture | H40: High- Performance Exterior | O40: 0
G41: Retrofit fixture | H41: High- Performance Exterior | O41: 0
G42: Retrofit fixture | H42: High- Performance Exterior | O42: 0
G43: Retrofit fixture | H43: High- Performance Exterior | O43: 0
G44: Retrofit fixture | H44: High- Performance Exterior | O44: 0
G45: Retrofit fixture | H45: High- Performance Exterior | O45: 0
G46: Retrofit fixture | H46: High- Performance Exterior | O46: 0
G47: Retrofit fixture | H47: High- Performance Exterior | O47: 0
G48: Retrofit fixture | H48: High- Performance Exterior | O48: 0
G49: Retrofit fixture | H49: High- Performance Exterior | O49: 0
G50: Retrofit fixture | H50: High- Performance Exterior | O50: 0
G51: Retrofit fixture | H51: High- Performance Exterior | O51: 0
G52: Retrofit fixture | H52: High- Performance Exterior | O52: 0
G53: Retrofit fixture | H53: High- Performance Exterior | O53: 0
G54: Retrofit fixture | H54: High- Performance Exterior | O54: 0
G55: Retrofit fixture | H55: High- Performance Exterior | O55: 0
G56: Retrofit fixture | H56: High- Performance Exterior | O56: 0
G57: Retrofit fixture | H57: High- Performance Exterior | O57: 0
G58: Retrofit fixture | H58: High- Performance Exterior | O58: 0
G59: Retrofit fixture | H59: High- Performance Exterior | O59: 0
G60: Retrofit fixture | H60: High- Performance Exterior | O60: 0
G61: Retrofit fixture | H61: High- Performance Exterior | O61: 0
G62: Retrofit fixture | H62: High- Performance Exterior | O62: 0
G63: Retrofit fixture | H63: High- Performance Exterior | O63: 0
G64: Retrofit fixture | H64: High- Performance Exterior | O64: 0
G65: Retrofit fixture | H65: High- Performance Exterior | O65: 0
G66: Retrofit fixture | H66: High- Performance Exterior | O66: 0
G67: Retrofit fixture | H67: High- Performance Exterior | O67: 0
G68: Retrofit fixture | H68: High- Performance Exterior | O68: 0
G69: Retrofit fixture | H69: High- Performance Exterior | O69: 0
G70: Retrofit fixture | H70: High- Performance Exterior | O70: 0
G71: Retrofit fixture | H71: High- Performance Exterior | O71: 0
G72: Retrofit fixture | H72: High- Performance Exterior | O72: 0
G73: Retrofit fixture | H73: High- Performance Exterior | O73: =IF(G73="Non-Eligible",0,(I73*(N73+M73))) -> 0
G74: Retrofit fixture | H74: High- Performance Exterior | O74: 0
G75: Retrofit fixture | H75: High- Performance Exterior | O75: 0
G76: Retrofit fixture | H76: High- Performance Exterior | O76: 0
G77: Retrofit fixture | H77: High- Performance Exterior | O77: 0
G78: Retrofit fixture | H78: High- Performance Exterior | O78: 0
G79: Retrofit fixture | H79: High- Performance Exterior | O79: 0
G80: Retrofit fixture | H80: High- Performance Exterior | O80: 0
G81: Retrofit fixture | H81: High- Performance Exterior | O81: 0
G82: Retrofit fixture | H82: High- Performance Exterior | O82: 0
G83: Retrofit fixture | H83: High- Performance Exterior | O83: 0
G84: Retrofit fixture | H84: High- Performance Exterior | O84: 0
G85: Retrofit fixture | H85: High- Performance Exterior | O85: 0
G86: Retrofit fixture | H86: High- Performance Exterior | O86: 0
G87: Retrofit fixture | H87: High- Performance Exterior | O87: 0
G88: Retrofit fixture | H88: High- Performance Exterior | O88: 0
G89: Retrofit fixture | H89: High- Performance Exterior | O89: 0
G90: Retrofit fixture | H90: High- Performance Exterior | O90: 0
G91: Retrofit fixture | H91: High- Performance Exterior | O91: 0
G92: Retrofit fixture | H92: High- Performance Exterior | O92: 0
G93: Retrofit fixture | H93: High- Performance Exterior | O93: 0
G94: Retrofit fixture | H94: High- Performance Exterior | O94: 0
G95: Retrofit fixture | H95: High- Performance Exterior | O95: 0
G96: Retrofit fixture | H96: High- Performance Exterior | O96: 0
G97: Retrofit fixture | H97: High- Performance Exterior | O97: 0
G98: Retrofit fixture | H98: High- Performance Exterior | O98: 0
G99: Retrofit fixture | H99: High- Performance Exterior | O99: 0
G100: Retrofit fixture | H100: High- Performance Exterior | O100: 0
G101: Retrofit fixture | H101: High- Performance Exterior | O101: 0
G102: Retrofit fixture | H102: High- Performance Exterior | O102: 0
G103: Retrofit fixture | H103: High- Performance Exterior | O103: 0
G104: Retrofit fixture | H104: High- Performance Exterior | O104: 0
G105: Retrofit fixture | H105: High- Performance Exterior | O105: 0
G106: Retrofit fixture | H106: High- Performance Exterior | O106: 0
G107: Retrofit fixture | H107: High- Performance Exterior | O107: 0
G108: Retrofit fixture | H108: High- Performance Exterior | O108: 0
G109: Retrofit fixture | H109: High- Performance Exterior | O109: 0
G110: Retrofit fixture | H110: High- Performance Exterior | O110: 0
G111: Retrofit fixture | H111: High- Performance Exterior | O111: 0
G112: Retrofit fixture | H112: High- Performance Exterior | O112: 0
G113: Retrofit fixture | H113: High- Performance Exterior | O113: 0
G114: Retrofit fixture | H114: High- Performance Exterior | O114: 0
G115: Retrofit fixture | H115: High- Performance Exterior | O115: 0
G116: Retrofit fixture | H116: High- Performance Exterior | O116: 0
G117: Retrofit fixture | H117: High- Performance Exterior | O117: 0
G118: Retrofit fixture | H118: High- Performance Exterior | O118: 0
G119: Retrofit fixture | H119: High- Performance Exterior | O119: 0
G120: Retrofit fixture | H120: High- Performance Exterior | O120: 0
G121: Retrofit fixture | H121: High- Performance Exterior | O121: 0
G122: Retrofit fixture | H122: High- Performance Exterior | O122: 0
G123: Retrofit fixture | H123: High- Performance Exterior | O123: 0
G124: Retrofit fixture | H124: High- Performance Exterior | O124: 0

Sheet Lighting Summary (hidden)
D3: ='Step 1 - Project Info'!$C$3&" - "&'Step 1 - Project Info'!$C$7 -> Winem Apartments - Ashford
D6: Note: PLEASE SPECIFY MISCELLANEOUS COST ASSOCIATED WITH LIGHTING INSTALLATION
C7: TOTAL LIGHTING QUANTITY THE BUILDING NEEDS TO BE SERVICED
B10: Dwelling Unit
B11: Existing Bulb Name | C11: Existing Bulb Wattage | D11: Recommended Bulb Name/ Model | E11: Proposed Bulb Wattage | F11: Quantity | G11: Location | H11: Material cost | I11: Labor Cost | J11: Total Cost
A12: Example | B12: Incandescent Bulb | C12: 60 | D12: A-Line | E12: 10 | F12: 390 | G12: Bedroom | H12: 3 | I12: 3 | J12: =(H12+I12)*F12 -> 2340
A13: Example | B13: Incandescent Bulb | C13: 40 | D13: Globe | E13: 8 | F13: 217 | G13: Bathroom | H13: 3 | I13: 3 | J13: =(H13+I13)*F13 -> 1302
A14: Example | B14: Incandescent Bulb | C14: 60 | D14: CFL | E14: 13 | F14: 260 | G14: Closet | H14: 3 | I14: 3 | J14: 1560
A15: Example | B15: Incandescent Bulb | C15: 60 | D15: A-Line | E15: 10 | F15: 390 | G15: Living room | H15: 3 | I15: 3 | J15: 2340
A16: Example | B16: Incandescent Bulb | C16: 40 | D16: Globe | E16: 8 | F16: 217 | G16: Dining Room | H16: 3 | I16: 3 | J16: 1302
A17: Example | B17: Incandescent Bulb | C17: 60 | D17: CFL | E17: 13 | F17: 260 | G17: HallWay | H17: 3 | I17: 3 | J17: 1560
J18: 0
I19: Total | J19: =SUM(J12:J18) -> 10404
B20: Existing Fixture Name | C20: Existing Fixture Wattage | D20: Recommended Fixture Name/ Model | E20: Proposed Fixture Wattage | F20: Quantity | G20: Location | H20: Material cost | I20: Labor Cost | J20: Total Cost
A21: Example | B21: Incandescent Drum | C21: 120 | D21: LED DC014 | E21: 14 | F21: 390 | G21: Bedroom | H21: 25 | I21: 25 | J21: =(H21+I21)*F21 -> 19500
A22: Example | B22: Incandescent Drum | C22: 80 | D22: LED DC015 | E22: 8 | F22: 217 | G22: Bathroom | H22: 25 | I22: 25 | J22: =(H22+I22)*F22 -> 10850
J23: 0
J24: 0
J25: 0
J26: 0
I27: Total | J27: =SUM(J21:J26) -> 30350
B30: Common Area
B31: Existing Fixture or Bulb Name | C31: Existing Fixture or Bulb Wattage | D31: Recommended Fixture or BulbsName/ Model | E31: Wattage | F31: Quantity | G31: Location | H31: Material cost | I31: Labor Cost | J31: Total Cost
A32: Example | B32: Incandescent Bulb | C32: 60 | D32: RAB WLED35 | E32: 41 | F32: 390 | G32: Exterior BLDG 2 | H32: 80 | I32: 100 | J32: =(H32+I32)*F32 -> 70200
A33: Example | B33: Incandescent Bulb | C33: 40 | D33: DC014 LED | E33: 8 | F33: 217 | G33: Common Area Hallway BLDG 3 | H33: 80 | I33: 27 | J33: =(H33+I33)*F33 -> 23219
A34: Example | B34: Incandescent Bulb | C34: 60 | D34: RAB WLED37 | E34: 41 | F34: 260 | G34: Exterior BLDG 4 | H34: 80 | I34: 100 | J34: 46800
A35: Example | B35: Incandescent Bulb | C35: 60 | D35: RAB WLED38 | E35: 41 | F35: 390 | G35: Exterior BLDG 5 | H35: 80 | I35: 100 | J35: 70200
A36: Example | B36: Incandescent Bulb | C36: 40 | D36: RAB WLED39 | E36: 41 | F36: 217 | G36: Exterior BLDG 6 | H36: 80 | I36: 100 | J36: 39060
A37: Example | B37: Incandescent Bulb | C37: 60 | D37: RAB WLED40 | E37: 41 | F37: 260 | G37: Exterior BLDG 7 | H37: 80 | I37: 100 | J37: 46800
I42: Total | J42: =SUM(J32:J41) -> 296279

Sheet Insulation (hidden)
E3: ='Step 1 - Project Info'!$C$3&" - "&'Step 1 - Project Info'!$C$7 -> Winem Apartments - Ashford
D7: LOCATION | E7: SQUARE FOOTAGE BEING INSULATED | F7: Existing Insulation Type | G7: Existing Insulation Thickness Inches | H7: Existing Insulation R-value | I7: Proposed Insulation Type | J7: Proposed Insulation Installed R-value | K7: Proposed Project Cost
B8: Attic
B9: Roof line/ Vaulted Ceiling
B10: Foundation wall
B11: Basement Ceiling
B12: Exterior Wall
B13: Crawlspace Wall
B14: Crawlspace Ceiling
B15: Rim Joist
B16: Attic Hatch Cover
B17: Attic Pull Down Stairs Cover | F17: COST
B18: Attic Whole House Fan Cover | D18: ADDITIONAL INSULATION AND AIR SEALING MEASURES
D19: PROP VENTS
D20: AIR SEALING ENTRY WAYS (ATTIC HATCH, CRAWLSPACE,

Sheet Window Replacements (hidden)
F2: ='Step 1 - Project Info'!$C$3&" - "&'Step 1 - Project Info'!$C$7 -> Winem Apartments - Ashford
D7: EXISTING WINDOW TYPES | E7: PROPOSED MANUFACTURER AND MODEL NUMBER | F7: CPD NUMBER | G7: WIDTH | H7: LENGTH | I7: QUANTITY | J7: TOTAL AREA | K7: PROPOSED WINDOW TYPE | L7: PROPOSED WINDOW MATERIAL COST | M7: PROPOSED WINDOW LABOR COST | N7: TOTAL COST
B8: Single Pane | D8: Single Pane | J8: =G8*H8*I8 -> 0
B9: Double Pane | J9: =G9*H9*I9 -> 0
J10: =G10*H10*I10 -> 0
J11: =G11*H11*I11 -> 0
J12: =G12*H12*I12 -> 0
J13: 0
J14: 0
J15: 0
J16: 0
J17: 0
J18: =G18*H18*I18 -> 0
J19: 0
J20: 0

Sheet Refrigerator Replacements (hidden)
C2: ='Step 1 - Project Info'!$C$3&" - "&'Step 1 - Project Info'!$C$7 -> Winem Apartments - Ashford
D3: Existing Units | I3: Proposed Units
C4: Unit # | D4: Age | E4: Make | F4: Size | G4: Model | H4: KWH | I4: Model | J4: Size | K4: KWH | L4: Cost
B5: Example | C5: A101 | D5: 15 yrs | E5: Hotpoint | F5: 14 | G5: CTH14CYBRLWW | H5: 499 | I5: FFHT1513LW | J5: 15 | K5: 355 | L5: 574
H11: =SUM(H5:H9) -> 499 | K11: =SUM(K5:K9) -> 355 | L11: =SUM(L5:L9) -> 574
G13: ∆kWh = | H13: =H11-K11 -> 144
G14: Est. Savings =
G15: Est. Payback =

Sheet HVAC (hidden)
F2: ='Step 1 - Project Info'!$C$3&" - "&'Step 1 - Project Info'!$C$7 -> Winem Apartments - Ashford
H9: HEATING SYSTEM
D11: LOCATION | E11: EXISTING HEATING SYSTEM TYPE | F11: MODEL NUMBER | G11: AGE | H11: EXISTING SIZE (INPUT MBTU) | I11: Individual or Central System | J11: Quantity | K11: PROPOSED HEATING TYPE | L11: SIZE (INPUT MBTU) | M11: PROPOSED EFFICIENCY (AFUE or HSPF) | N11: Quantity | O11: PROJECT COST
B12: Electric Heater
B13: Gas Boiler
B14: Condensing Gas Boiler
B15: Oil Boiler
B16: HydroAir
B17: Propane Boiler | D17: Is there a indirect hot water system working with the existing boiler?
B18: Electric Furnace
B19: Gas Furnace
B20: Condensing Gas Furnace
B21: Oil Furnace | H21: HEATING SYSTEM PUMPS
B22: Propane Furnace
B23: Ductless MiniSplit | D23: LOCATION | E23: EXISTING HEATING SYSTEM PUMPS TYPE | G23: AGE | H23: SIZE (HP) | I23: Individual or Central System | J23: Quantity | K23: PROPOSED HEATING SYSTEM PUMPS TYPE | L23: SIZE (HP) | M23: EFFICIENCY | N23: Quantity | O23: PROJECT COST
B24: Ducted Heat Pumps | E24: CONSTANT VOLUME
B28: CONSTANT VOLUME
B29: VARIABLE SPEED
D30: How is the pump being controlled?
B33: Individual
B34: Central
H35: DOMESTIC HOT WATER HEATER
D37: LOCATION | E37: EXISTING HOT WATER HEATER TYPE | F37: Indirect/ Storage/ Instantaneous | G37: AGE | H37: SIZE (MBTU) | I37: Individual or Central System | J37: Quantity | K37: PROPOSED HOT WATER HEATER TYPE | L37: SIZE (MBTU) | M37: EFFICIENCY | N37: Quantity | O37: PROJECT COST
B38: Electric Water Heater
B39: Heat Pump Water Heater
B40: Gas Water Heater
B41: Oil Water Heater
B42: Propane Water Heater
B44: Indirect
B45: Storage
B46: Instananeous
H48: DOMESTIC HOT WATER HEATER CIRCULATOR PUMPS
D50: LOCATION | E50: EXISTING HOT WATER HEATER PUMPS TYPE | G50: AGE | H50: SIZE (HP) | J50: Quantity | K50: PROPOSED HOT WATER HEATER PUMPS TYPE | L50: SIZE (HP) | M50: EFFICIENCY | N50: Quantity | O50: PROJECT COST
B55: Pressure
B56: Temperature | D56: How is the pump being controlled?
H60: COOLING SYSTEM
D62: LOCATION | E62: EXISTING COOLING SYSTEM TYPE | G62: AGE | H62: SIZE (TONS) | I62: Individual or Central System | J62: Quantity | K62: PROPOSED COOLING TYPE | L62: SIZE (BTUH) | M62: EFFICIENCY (SEER/EER) | N62: Quantity | O62: PROJECT COST
B63: PACKAGED DX
B64: CHILLER PLANT
B65: DUCTLESS MINI SPLIT
B66: DX SPLIT
B67: DX HP
B68: AIR SOURCE HEAT PUMP | D68: For Heat Pumps is there a control strategy for back up heat? | F68: Notes
B69: WATERSOURCE HEAT PUMP
B70: GROUND SOURCE HEAT PUMP
B71: WINDOW UNIT
B72: GEOTHERMAL HEAT PUMP

Sheet Drop Down List (hidden)
A1: recessed | B1: recessed
A2: drum | B2: drum | C2: New fixture | F2: High- Performance Exterior
A3: wrap | B3: wrap | C3: Retrofit fixture | F3: High- Performance Exterior
A4: troffer | B4: troffer | C4: Screw-in bulb | F4: Standard Interior
A5: sconce | B5: sconce | C5: Ineligible | F5: Standard Exterior
A6: jelly jar | B6: jelly jar | C6: No recommendation
A7: square | B7: square
A8: cloud | B8: cloud
A9: strip | B9: strip
A10: vanity | B10: vanity
A11: table lamp | B11: table lamp
A12: floor lamp | B12: floor lamp
A13: keyless | B13: keyless
A14: plate | B14: wallpack
A15: other | B15: bollard
B16: flood
B17: canopy
B18: acorn
B19: Par Flood
B20: shoebox
B21: exit light
B22: other

Sheet Custom Measure (hidden)
C2: ='Step 1 - Project Info'!$C$3&" - "&'Step 1 - Project Info'!$C$7 -> Winem Apartments - Ashford
F7: Custom Measure Details
B9: LOCATION | C9: EXISTING MEASURE | D9: MODEL NUMBER | E9: AGE | F9: ADDITIONAL DETAIL ON EXISTING MEASURE | G9: ADDITIONAL DETAIL ON EXISTING MEASURE | H9: Existing Measure Quantity | I9: PROPOSED MEASURE | J9: ADDITIONAL DETAIL ON EXISTING MEASURE | K9: ADDITIONAL DETAIL ON EXISTING MEASURE | L9: Proposed Measure Quantity | M9: PROJECT COST

Sheet Building Oil or Propane Usage (hidden)
G2: ='Step 1 - Project Info'!$C$3&"-"&'Step 1 - Project Info'!$C$7 -> Winem Apartments-Ashford
C6: Example | E6: Oil Usage Gallons | H6: Example | J6: Propane Usage Gallons
C7: 2013-01-15 | D7: 2013-02-15 | E7: 1500 | H7: 2013-01-15 | I7: 2013-02-15 | J7: 1500
C8: 2013-02-15 | D8: 2013-03-15 | E8: 1000 | H8: 2013-02-15 | I8: 2013-03-15 | J8: 1000
C9: 2013-03-15 | D9: 2013-04-15 | E9: 600 | H9: 2013-03-15 | I9: 2013-04-15 | J9: 600
C10: 2013-04-15 | D10: 2013-05-15 | E10: 300 | H10: 2013-04-15 | I10: 2013-05-15 | J10: 300
C11: 2013-05-15 | D11: 2013-06-15 | E11: 300 | H11: 2013-05-15 | I11: 2013-06-15 | J11: 300
C12: 2013-06-15 | D12: 2013-07-15 | E12: 300 | H12: 2013-06-15 | I12: 2013-07-15 | J12: 300
C13: 2013-07-15 | D13: 2013-08-15 | E13: 300 | H13: 2013-07-15 | I13: 2013-08-15 | J13: 300
C14: 2013-08-15 | D14: 2013-09-15 | E14: 300 | H14: 2013-08-15 | I14: 2013-09-15 | J14: 300
C15: 2013-09-15 | D15: 2013-10-15 | E15: 300 | H15: 2013-09-15 | I15: 2013-10-15 | J15: 300
C16: 2013-10-15 | D16: 2013-11-15 | E16: 600 | H16: 2013-10-15 | I16: 2013-11-15 | J16: 600
C17: 2013-11-15 | D17: 2013-12-15 | E17: 1000 | H17: 2013-11-15 | I17: 2013-12-15 | J17: 1000
C18: 2013-12-15 | D18: 2014-01-15 | E18: 1500 | H18: 2013-12-15 | I18: 2014-01-15 | J18: 1500
C19: 2014-01-15 | D19: 2014-02-15 | E19: 1500 | H19: 2014-01-15 | I19: 2014-02-15 | J19: 1500
C20: 2014-02-15 | D20: 2014-03-15 | E20: 1000 | H20: 2014-02-15 | I20: 2014-03-15 | J20: 1000
C21: 2014-03-15 | D21: 2014-04-15 | E21: 600 | H21: 2014-03-15 | I21: 2014-04-15 | J21: 600
C22: 2014-04-15 | D22: 2014-05-15 | E22: 300 | H22: 2014-04-15 | I22: 2014-05-15 | J22: 300
C23: 2014-05-15 | D23: 2014-06-15 | E23: 300 | H23: 2014-05-15 | I23: 2014-06-15 | J23: 300
C24: 2014-06-15 | D24: 2014-07-15 | E24: 300 | H24: 2014-06-15 | I24: 2014-07-15 | J24: 300
C25: 2014-07-15 | D25: 2014-08-15 | E25: 300 | H25: 2014-07-15 | I25: 2014-08-15 | J25: 300
C26: 2014-08-15 | D26: 2014-09-15 | E26: 300 | H26: 2014-08-15 | I26: 2014-09-15 | J26: 300
C27: 2014-09-15 | D27: 2014-10-15 | E27: 300 | H27: 2014-09-15 | I27: 2014-10-15 | J27: 300
C28: 2014-10-15 | D28: 2014-11-15 | E28: 600 | H28: 2014-10-15 | I28: 2014-11-15 | J28: 600
C29: 2014-11-15 | D29: 2014-12-15 | E29: 1000 | H29: 2014-11-15 | I29: 2014-12-15 | J29: 1000
C30: 2014-12-15 | D30: 2015-01-15 | E30: 1500 | H30: 2014-12-15 | I30: 2015-01-15 | J30: 1500

Sheet Dropdown (hidden)
B3: Competitive Resources, Inc., 60 Church Street, Suite #2, Yalesville, CT 06492 | D3: Andover | E3: Carl Watts | F3: Multifamily Low-Rise Apartments 1-3 stories | G3: Air Sealing | H3: None | I3: Electric | J3: Central AC
B4: Energy Efficiencies Solutions, LLC, 398 Palisado Avenue, Windsor, CT 06095 | D4: Ansonia | E4: Dana Forrester | F4: Multifamily Mid-Rise Apartments 4 - 5 stories | G4: Duct Sealing | H4: ALM ducts | I4: Nat. Gas | J4: Window AC
B5: Handyman Express Energy Solutions, LLC, 1414 Barnum Avenue,Stratford, CT 06614 | D5: Ashford | E5: Sheldon Scott | F5: Multifamily High-Rise Apartments 6 stories or more | G5: Water Measures | H5: ALM ducts and pipes | I5: Prop. Gas | J5: None
B6: New England Smart Energy Group, LLC, 34 Sherman Court, Fairfield, CT 06824 | D6: Avon | E6: Natalia Sudyka | F6: Multifamily Apartments | G6: Dwelling Unit Lighting | H6: ALM Pipes | I6: Oil | J6: Other
B7: Santa Fuel, Inc., 154 Admiral Street, Bridgeport, CT 06605 | D7: Barkhamsted | E7: Enoch Lenge | F7: Multifamily Townhouse | G7: Common and Exterior Lighting | H7: CO | I7: Other
B8: Action for Bridgeport Community Development, 1070 Park Avenue, Bridegeport, CT 06604 | D8: Beacon Falls | E8: Sheldon Scott | F8: Multifamily Other | G8: Insulation | H8: Customer refused
B9: The Access Agency, 1315 Main Street, Willimantic, CT 06226 | D9: Berlin | E9: Evan Seretan | G9: Window Replacements | H9: Failed CAZ
B10: Community Renewal Team, Inc., 555 Windsor Street, Hartford, CT 06120 | D10: Bethany | E10: Elizabeth Murphy | G10: Refrigerators Replacement | H10: Failed wores case spillage
B11: New Opportunities, Inc. | D11: Bethel | G11: HVAC | H11: Gas leak customer side
B12: Energy Resources Group Technologies, Inc. | D12: Bethlehem | G12: Custom Measure | H12: Gas Leak Utility side
B13: New Opportunities, Inc., 232 North Elm Street, Waterbury, CT 06702 | D13: Bloomfield | H13: Gas leaks both sides
D14: Bolton | H14: Lead
B15: EVERSOURCE GAS | D15: Bozrah | H15: Mold
B16: CNG GAS | D16: Branford | H16: MVG
B17: SCG GAS | D17: Bridgeport | H17: Pest investation
B18: OIL | D18: Bridgewater | H18: Vermiculite
B19: PROPANE | D19: Bristol | G19: Air Sealing | H19: Unvented gas appliance
D20: Brookfield | G20: Air Source Heat Pump
B21: UI ELECTRIC | D21: Brooklyn | G21: Boiler
B22: EVERSOURCE ELECTRIC | D22: Burlington | G22: Central AC
B23: OTHER | D23: Canaan | G23: Common and Exterior Lighting
D24: Canterbury | G24: Controls
B25: Market Rate | D25: Canton | G25: Customer refused
B26: Income Eligible | D26: Chaplin | G26: Dwelling Unit Lighting Bulbs
D27: Cheshire | G27: Dwelling Unit Lighting Fixtures
D28: Chester | G28: Duct Sealing
D29: Clinton | G29: ECM Pumps
D30: Colchester | G30: Furnace
D31: Colebrook | G31: Heat Pump Hot Water Heater
D32: Columbia | G32: Hot Water Heater
D33: Cornwall | G33: Insulation
D34: Coventry | G34: Refrigerators
D35: Cromwell | G35: Variable Frequency Drive (VFD)
D36: Danbury | G36: Water Measures
D37: Darien | G37: Water Source Heat Pump
D38: Deep River | G38: Window Replacement
D39: Derby | G39: Custom
D40: East Windsor
D41: Eastford
D42: Easton
D43: Enfield
D45: Essex
D46: Farmington
D47: Glastonbury
D48: Goshen
D49: Granby
D50: Greenwich
D51: Griswold
D52: Groton
D53: Guilford
D54: Haddam
D55: Hamden
D56: Hampton
D57: Hartford
D58: Hartland
D59: Harwinton
D60: Hebron
D61: Kent
D62: Killingly
D63: Killingworth
D64: Lebanon
D65: Ledyard
D66: Lisbon
D67: Litchfield
D68: Lyme
D69: Madison
D70: Manchester
D71: Mansfield
D72: Marlborough
D73: Meriden
D74: Middlebury
D75: Middlefield
D76: Middletown
D77: Milford
D78: Monroe
D79: Montville
D80: Morris
D81: Naugatuck
D82: New Britain
D83: New Canaan
D84: New Fairfield
D85: New Hartford
D86: New Haven
D87: New London
D88: New Milford
D89: Newington
D90: Newtown
D91: Norfolk
D92: North Branford
D93: North Canaan
D94: North Haven
D95: North Stonington
D96: Norwalk
D97: Norwich
D98: Old Lyme
D99: Old Saybrook
D100: Orange
D101: Oxford
D102: Plainfield
D103: Plainville
D104: Plymouth
D105: Pomfret
D106: Portland
D107: Preston
D108: Prospect
D109: Putnam
D110: Redding
D111: Ridgefield
D112: Rocky Hill
D113: Roxbury
D114: Salem
D115: Salisbury
D116: Scotland
D117: Seymour
D118: Sharon
D119: Shelton
D120: Sherman
D121: Simsbury
D122: Somers
D123: South Windsor
D124: Southbury
D125: Southington
D126: Sprague
D127: Stafford
D128: Stamford
D129: Sterling
D130: Stonington
D131: Stratford
D132: Suffield
D133: Terryville
D134: Thomaston
D135: Thompson
D136: Tolland
D137: Torrington
D138: Trumbull
D139: Union
D140: Vernon
D141: Voluntown
D142: Wallingford
D143: Warren
D144: Washington
D145: Waterbury
D146: Waterford
D147: Watertown
D148: West Hartford
D149: West Haven
D150: Westbrook
D151: Weston
D152: Westport
D153: Wethersfield
D154: Willington
D155: Wilton
D156: Winchester
D157: Windham
D158: Windsor
D159: Windsor Locks
D160: Wolcott
D161: Woodbridge
D162: Woodbury
D163: Woodstock
